Cogmind - Beta 13 @@@ ROGUE MODE // 2024.04.20 @ 09:53:53 Player: Fazzonamite Result: Destroyed by B-90 Cyclops with Nova Cannon Performance ------------- Evolutions (8) 4000 Regions Visited (14) 2800 Robots Destroyed (88) 440 Value Destroyed (3747) 3747 Prototype IDs (3) 60 Alien Tech Used (0) 0 Bonus (401) 401 TOTAL SCORE: 11448 Bonus ------- High Alert Combat Kills 11 Follower Combat Kills 390 Cogmind --------- Core Integrity 0/1450 Matter 169/300 Energy 98/135 System Corruption 0% Temperature Hot (259) Movement Core (200) Ox3 Location -2/Research Parts ------- > --- POWER (3) -------- Compact Particle Reactor > --- PROPULSION (6) --- (None) > --- UTILITY (10) ----- Enhanced Optical Array Signal Interpreter > --- WEAPON (4) ------- (None) > --- INVENTORY (5) ---- High-density Centrium Heavy Treads Advanced Power Amplifier Advanced Cryofiber Web Point Defense Array Peak State ------------ > --- POWER ------------ Light Quantum Reactor > --- PROPULSION ------- Field Propulsion Array Impulse Thruster Array Impulse Thruster Array > --- UTILITY ---------- Small Storage Unit Visual Processing Unit Enhanced Optical Array Signal Interpreter Improved Terrain Scanner Improved Terrain Scan Processor Advanced Targeting Computer Core Analyzer Advanced Reaction Control System Advanced Hacking Suite > --- WEAPON ----------- Tesla Rifle Enhanced Quantum Rifle > --- INVENTORY -------- Advanced Power Amplifier Advanced Cryofiber Web Advanced Transmission Jammer Point Defense Array Mini Grenade Launcher Phasing Sabre [Rating: 108] Favorites ----------- Power Improved Deuterium Engine Engine Improved Deuterium Engine Power Core Fission Core Reactor Quantum Reactor Propulsion Carbon-fiber Leg Treads Improved Treads Leg Carbon-fiber Leg Wheel Compact Wheel Flight Unit Field Propulsion Array Utility Signal Interpreter Device Improved Heat Sink Storage Medium Storage Unit Processor Signal Interpreter Hackware Hacking Suite Protection Hardened Medium Armor Plating Weapon Phasing Sabre Energy Gun Plasma Rifle Energy Cannon Plasma Cannon Ballistic Gun Minigun Ballistic Cannon Gauss Cannon Launcher Mini Grenade Launcher Impact Weapon Heavy Hammer Slashing Weapon Phasing Sabre Piercing Weapon Force Lance Build | -11 -10 -9 -8 -7 -6 -6 -6 -6 -5 -5 -5 -4 -3 -2 ------- Run | Yrd Mat Mat Mat Fac Fac Ext Cet Arc Fac Upp Upp Fac Res Res Slots Evolved 16 | . . 2 2 2 2 . . . 2 . . 2 2 2 Power 2 | . . . . . 1 . . . . . . . . 1 Propulsion 4 | . . . 1 . . . . . 1 . . 1 . 1 Utility 8 | . . 2 1 2 1 . . . . . . . 2 . Weapon 2 | . . . . . . . . . 1 . . 1 . . Parts Attached 133 | 8 3 18 27 10 6 16 6 1 2 5 3 9 4 15 Power 21 | 1 1 3 2 . 2 3 2 . 1 1 . . . 5 Engine 14 | 1 1 3 2 . 2 3 1 . 1 . . . . . Core 4 | . . . . . . . . . . 1 . . . 3 Reactor 3 | . . . . . . . 1 . . . . . . 2 Propulsion 27 | 2 . 3 5 1 . 5 3 1 . . 1 2 1 3 Treads 3 | . . . . . . . . . . . 1 1 . 1 Leg 18 | . . 3 5 1 . 5 3 1 . . . . . . Wheel 2 | 2 . . . . . . . . . . . . . . Hover . | . . . . . . . . . . . . . . . Flight 4 | . . . . . . . . . . . . 1 1 2 Utility 35 | 3 2 2 8 3 1 5 1 . . 2 1 4 1 2 Device 12 | 2 1 2 1 1 1 1 . . . 1 . . 1 1 Storage 3 | 1 . . 1 . . . . . . . . 1 . . Processor 9 | . 1 . 2 1 . 1 . . . . . 3 . 1 Hackware 2 | . . . . 1 . . . . . 1 . . . . Protection 9 | . . . 4 . . 3 1 . . . 1 . . . Artifact . | . . . . . . . . . . . . . . . Weapon 50 | 2 . 10 12 6 3 3 . . 1 2 1 3 2 5 Energy Gun 13 | 1 . 3 1 . 2 1 . . . 1 . . 2 2 Energy Cannon 1 | . . . . . 1 . . . . . . . . . Ballistic Gun 18 | 1 . 4 6 2 . 1 . . . 1 1 2 . . Ballistic Cannon 3 | . . . . 2 . 1 . . . . . . . . Launcher 6 | . . . 2 2 . . . . . . . 1 . 1 Special Weapon . | . . . . . . . . . . . . . . . Impact Weapon 6 | . . 3 3 . . . . . . . . . . . Slashing Weapon 2 | . . . . . . . . . 1 . . . . 1 Piercing Weapon 1 | . . . . . . . . . . . . . . 1 Special Melee Weapon . | . . . . . . . . . . . . . . . Unidentified Prototypes 3 | . . . . . . . 1 . . . . . . 2 Parts Lost 69 | . 1 7 4 . . 13 3 6 . 2 2 7 2 22 Power 16 | . 1 2 1 . . 3 2 1 . 1 . 1 . 4 Propulsion 18 | . . 3 . . . 4 1 2 . . 1 2 . 5 Utility 18 | . . . 1 . . 5 . 1 . 1 . 2 . 8 Weapon 17 | . . 2 2 . . 1 . 2 . . 1 2 2 5 Highest Loss Streak 19 | . 1 3 1 . . 9 3 6 . 2 2 5 2 19 To Critical Strikes 2 | . . . . . . . . . . . 1 . . 1 Average Slot Usage (%) 82 | . 99 97 96 100 99 78 98 93 59 71 77 65 53 36 Engine 6 | . 13 10 8 7 12 6 6 4 1 1 . . . . Leg 13 | . . 15 26 23 20 12 19 18 11 11 2 . . . Wheel 1 | . 28 5 . . . . . . . . . . . . Device 8 | . 8 22 9 15 20 6 6 6 5 4 5 3 . 2 Storage 6 | . 14 11 9 7 6 6 6 6 5 5 5 4 4 2 Processor 16 | . 5 11 15 15 13 18 20 20 17 17 17 17 28 17 Hackware 4 | . . . . 7 6 6 6 6 5 5 11 9 4 1 Protection 5 | . . . 8 7 6 6 12 11 5 5 5 3 . . Energy Gun 4 | . 14 13 4 . 7 4 6 5 . 3 . . 1 1 Ballistic Gun 6 | . 14 7 10 9 . 1 6 4 . 3 10 9 6 . Slashing Weapon 1 | . . . . . . . . . 1 5 5 4 . . Naked Turns . | . . . . . . . . . . . . . . . Heaviest Build 58 | 15 15 20 35 40 47 51 58 58 38 42 42 43 15 35 Greatest Support 90 | 26 26 26 51 49 47 50 56 56 31 31 31 46 15 90 Greatest Overweight (x) 7 | 1 . 2 . . . 7 1 2 1 1 2 1 . 5 Average Overweight (x) . | . . . . . . 1 . . . . 1 . . . Largest Inventory Capacity 10 | 8 8 8 10 10 10 10 10 10 10 10 10 10 8 8 Average Capacity 9 | 7 8 8 8 10 10 10 10 10 10 10 10 9 8 6 Most Carried 10 | 6 8 8 8 10 10 10 8 7 8 6 5 10 8 8 Average Carried 6 | 3 6 6 7 7 9 8 7 6 6 4 4 6 7 6 Final Capacity 10 | 8 8 8 10 10 10 10 10 10 10 10 10 8 8 5 Final Carried 10 | 5 7 7 8 10 10 8 7 6 6 5 4 7 8 5 Class Distribution -------------------- 63% | Mutant 18% | Scavenger-Mutant 8% | Hacker-Mutant 5% | Scavenger-Skirmisher Dominant Class ---------------- Mutant | -10/Materials Mutant | -9/Materials Mutant | -8/Materials Mutant | -7/Factory Scavenger-Skirmisher | -6/Factory Mutant | -6/Extension Scavenger-Mutant | -6/Cetus Scavenger-Mutant | -6/Archives Scavenger-Mutant | -5/Factory Scavenger-Mutant | -5/Upper Caves Hacker-Mutant | -5/Upper Caves Hacker-Mutant | -4/Factory Mutant | -3/Research Mutant | -2/Research Resources | -11 -10 -9 -8 -7 -6 -6 -6 -6 -5 -5 -5 -4 -3 -2 ----------- Run | Yrd Mat Mat Mat Fac Fac Ext Cet Arc Fac Upp Upp Fac Res Res Matter Collected 2218 | 283 75 202 443 80 119 408 104 . . 145 57 302 . . Remotely . | . . . . . . . . . . . . . . . Salvage Created 3286 | 21 194 533 745 109 42 540 93 . . 207 85 608 . 109 Parts 169 | 2 14 37 39 5 2 19 5 . . 17 4 18 . 7 Haulers Intercepted . | . . . . . . . . . . . . . . . Recyclers Shooed 3 | . . . . . . . . . . . . 3 . . Parts Field Recycled . | . . . . . . . . . . . . . . . Retrieved Matter . | . . . . . . . . . . . . . . . Parts Self-Destructed 17 | . . . . . . . . . . 11 6 . . . Prevented 5 | . . . . . . . . . . 4 1 . . . Kills | -11 -10 -9 -8 -7 -6 -6 -6 -6 -5 -5 -5 -4 -3 -2 ------- Run | Yrd Mat Mat Mat Fac Fac Ext Cet Arc Fac Upp Upp Fac Res Res Combat Hostiles Destroyed 73 | . 6 11 18 2 1 11 2 . . 4 1 13 . 4 Guns 48 | . 4 10 16 . 1 4 2 . . 4 1 5 . 1 Cannons 6 | . . . . . . 6 . . . . . . . . AOE 17 | . 2 1 1 2 . . . . . . . 8 . 3 Classes Destroyed 13 | 1 3 4 3 . 1 . . . . . . 1 . . Worker 3 | . . 2 1 . . . . . . . . . . . Builder 5 | . . 3 . . . 1 . . . . . 1 . . Tunneler 1 | 1 . . . . . . . . . . . . . . Mechanic 2 | . . . 1 1 . . . . . . . . . . Operator 2 | . 1 . . . . 1 . . . . . . . . Watcher 2 | . . . 1 1 . . . . . . . . . . Swarmer 19 | . 3 4 5 . . 3 . . . . . . . 4 Grunt 26 | . 3 2 9 1 . 3 . . . 1 . 7 . . Brawler 1 | . . . . . . . . . . . . 1 . . Duelist 1 | . . 1 . . . . . . . . . . . . Sentry 16 | . . 4 3 1 . 4 . . . . 1 3 . . Hunter 4 | . . . 1 . . 1 1 . . 1 . . . . Programmer 5 | . . . . . 1 . . . . 2 . 2 . . Cetus Guard 1 | . . . . . . . 1 . . . . . . . Best Kill Streak 6 | 1 3 6 5 2 1 3 1 . . 2 1 6 . 3 Combat Bots Only 6 | . 3 4 5 1 1 3 1 . . 2 1 6 . 3 Max Kills in Single Turn 5 | 1 2 4 2 2 1 1 1 . . 1 1 5 . 3 Gunslinging . | . . . . . . . . . . . . . . . Exploded 5 | . 2 1 1 1 . . . . . . . 5 . 3 Melee . | . . . . . . . . . . . . . . . Uniques/NPCs Destroyed . | . . . . . . . . . . . . . . . Combat | -11 -10 -9 -8 -7 -6 -6 -6 -6 -5 -5 -5 -4 -3 -2 -------- Run | Yrd Mat Mat Mat Fac Fac Ext Cet Arc Fac Upp Upp Fac Res Res Hostile Shots Fired 1007 | . 13 69 144 46 8 178 47 79 . 45 11 74 46 247 Missed 330 | . 5 18 40 23 . 64 18 28 . 14 1 19 24 76 Damage Taken 12566 | . 118 757 1346 180 118 1851 712 1221 . 541 244 1221 423 3834 Core 2924 | . 12 147 195 24 45 459 118 147 . 35 . 143 111 1488 Absorbed by Shields . | . . . . . . . . . . . . . . . Redirected to Shielding 106 | . . . . . . . 16 90 . . . . . . Core Remaining (%) 77 | 100 95 63 64 96 . . . 9 . . 96 87 91 . Volleys Fired 230 | 1 15 37 58 4 4 38 13 2 . 14 4 34 2 4 Largest 3 | 2 2 2 2 2 2 2 2 2 . 2 2 3 2 2 Hottest 155 | 60 60 96 86 73 150 155 100 100 . 90 58 88 93 130 Shots Fired 427 | 2 30 68 103 7 8 76 26 4 . 25 9 58 4 7 Gun 373 | 2 30 68 99 3 8 38 26 4 . 25 9 51 4 6 Cannon 40 | . . . . 2 . 38 . . . . . . . . Launcher 14 | . . . 4 2 . . . . . . . 7 . 1 Special . | . . . . . . . . . . . . . . . Kinetic 236 | 1 15 17 74 5 . 33 13 2 . 14 9 51 2 . Thermal 118 | . . 24 25 . 8 43 13 2 . . . . . 3 Explosive 14 | . . . 4 2 . . . . . . . 7 . 1 Electromagnetic 59 | 1 15 27 . . . . . . . 11 . . 2 3 Robot Hit Streak 22 | 1 4 9 22 1 3 11 5 7 . 5 10 18 2 2 Robot Miss Streak 6 | . 2 6 3 1 2 2 1 . . 4 . 2 2 2 Penetration Max . | . . . . . . . . . . . . . . . Secondary Targets 1 | . . . 1 . . . . . . . . . . . Max Gunslinging Chain 1 | . . . 1 . . . . . . . . . . . Shots Hit Robots 293 | 1 14 40 79 1 4 53 20 4 1 12 8 45 2 9 Core Hits 179 | 1 10 27 43 9 2 22 7 . . 8 3 38 . 9 Critical Kills 2 | . . . 1 . . . . . . . . 1 . . Critical Parts Destroyed 2 | . . . 1 . . . . . . . . 1 . . Critical Strikes 19 | . . 1 6 1 . 3 2 1 . 1 . 2 . 2 Burn 9 | . . 1 4 . . 2 2 . . . . . . . Destroy 4 | . . . 1 . . . . 1 . . . 2 . . Blast 2 | . . . . 1 . 1 . . . . . . . . Corrupt 1 | . . . . . . . . . . 1 . . . . Smash 1 | . . . 1 . . . . . . . . . . . Sever 2 | . . . . . . . . . . . . . . 2 Melee Attacks 21 | . . 3 11 . . . . . 1 . . . . 6 Impact 14 | . . 3 11 . . . . . . . . . . . Slashing 6 | . . . . . . . . . 1 . . . . 5 Piercing 1 | . . . . . . . . . . . . . . 1 Sneak Attacks . | . . . . . . . . . . . . . . . Combat Hostiles . | . . . . . . . . . . . . . . . Follow-up Attacks 1 | . . . . . . . . . . . . . . 1 Damage Inflicted 9201 | 13 235 830 1702 637 110 1232 357 77 52 240 162 2871 61 622 Guns 4427 | 13 172 570 1094 . 110 579 357 77 . 240 162 890 61 102 Cannons 680 | . . . . 27 . 653 . . . . . . . . Explosions 3571 | . 63 260 384 610 . . . . . . . 1981 . 273 Melee 511 | . . . 212 . . . . . 52 . . . . 247 Ramming 12 | . . . 12 . . . . . . . . . . . Kinetic 2956 | . 52 140 805 27 . 494 150 34 . 179 162 890 23 . Thermal 3208 | . 63 400 289 137 110 738 207 43 . . . 1159 . 62 Explosive 1952 | . . . 384 473 . . . . . . . 822 . 273 Electromagnetic 562 | 13 120 290 . . . . . . . 61 . . 38 40 Impact 212 | . . . 212 . . . . . . . . . . . Slashing 239 | . . . . . . . . . 52 . . . . 187 Piercing 60 | . . . . . . . . . . . . . . 60 Highest Corruption 3 | . . 1 1 . 1 1 1 1 . 3 3 . . . Average Corruption 1 | . . 1 1 . 1 1 1 1 . 2 3 . . . Corruption Purged . | . . . . . . . . . . . . . . . Corruption Blocked . | . . . . . . . . . . . . . . . Effects 31 | . . 2 4 . 1 7 1 . . 10 6 . . . Message Errors 8 | . . . 1 . . 4 1 . . 2 . . . . Matter Fused 9 | . . 1 2 . . 2 . . . 3 1 . . . Heat Flow Errors 1 | . . . . . 1 . . . . . . . . . Energy Discharges 7 | . . . 1 . . 1 . . . 2 3 . . . Data Loss (minor) 2 | . . . . . . . . . . 1 1 . . . Misfires 2 | . . 1 . . . . . . . . 1 . . . Alerts 2 | . . . . . . . . . . 2 . . . . Overload Shots . | . . . . . . . . . . . . . . . Overflow Damage 279 | . . 33 44 22 . 1 . . 17 . . 162 . . Projectiles 1 | . . . . . . 1 . . . . . . . . Explosions 219 | . . 33 2 22 . . . . . . . 162 . . Melee 59 | . . . 42 . . . . . 17 . . . . . Knockbacks 7 | . . . 1 . . 6 . . . . . . . . Impact 1 | . . . 1 . . . . . . . . . . . Kinetic 5 | . . . . . . 5 . . . . . . . . Secondary 1 | . . . . . . 1 . . . . . . . . Self-Inflicted Damage 272 | . 39 141 . . . . . . . . . 92 . . Shots 8 | . 1 3 . . . . . . . . . 4 . . Rammed 1 | . . . . . . . . . . . . . . 1 Targets Rammed 2 | . . . 1 . . . . . . . . . . 1 Kicked 1 | . . . 1 . . . . . . . . . . . Crushed . | . . . . . . . . . . . . . . . Highest Temperature 339 | . 12 228 189 . 144 219 60 81 . 14 . 10 6 339 Average Temperature 52 | . 10 62 47 . 70 65 21 46 . 3 . 10 6 113 Received Heat Transfer 2325 | . 36 204 513 54 . 327 . 216 . . 45 232 148 550 Effects 3 | . . . . . . . . . . . . . . 3 Shutdowns 1 | . . . . . . . . . . . . . . 1 Energy Bleed 2 | . . . . . . . . . . . . . . 2 Siege Activations . | . . . . . . . . . . . . . . . Robots Corrupted . | . . . . . . . . . . . . . . . Combat Hostiles . | . . . . . . . . . . . . . . . Parts Fried 4 | . . 2 2 . . . . . . . . . . . Impact Corruptions 3 | . . . 3 . . . . . . . . . . . Robots Melted 1 | . . . . . . 1 . . . . . . . . Combat Hostiles 1 | . . . . . . 1 . . . . . . . . Parts Melted 12 | . . 2 . . 1 9 . . . . . . . . Heat Transferred 5281 | . 100 829 1036 100 200 1750 518 74 . . . 600 . 74 Parts Sabotaged . | . . . . . . . . . . . . . . . Parts Stolen . | . . . . . . . . . . . . . . . Parts Stripped . | . . . . . . . . . . . . . . . Power Chain Reactions 2 | . 1 1 . . . . . . . . . . . . Alert | -11 -10 -9 -8 -7 -6 -6 -6 -6 -5 -5 -5 -4 -3 -2 ------- Run | Yrd Mat Mat Mat Fac Fac Ext Cet Arc Fac Upp Upp Fac Res Res Peak Influence 433 | 5 112 336 423 433 257 273 207 142 58 . . 283 179 192 Initial 212 | . 3 42 103 164 212 125 77 82 28 . . 12 115 100 Average 170 | 1 57 180 275 370 246 127 170 99 42 . . 80 137 116 Maximum Alert Level 2 | . . 1 2 2 1 1 1 . . . . 1 . . Low Security (%) 64 | 100 100 64 23 13 . 84 74 100 100 . . 87 100 100 Level 1 28 | . . 35 60 21 100 15 25 . . . . 12 . . Level 2 7 | . . . 16 65 . . . . . . . . . . Level 3 . | . . . . . . . . . . . . . . . Level 4 . | . . . . . . . . . . . . . . . Level 5 . | . . . . . . . . . . . . . . . High Security . | . . . . . . . . . . . . . . . Max Security . | . . . . . . . . . . . . . . . Squads Dispatched 13 | . 2 . 2 1 . 2 1 . 1 . . 4 . . Investigation 1 | . . . . . . . 1 . . . . . . . Extermination 3 | . . . . 1 . . . . . . . 2 . . Reinforcement 8 | . 2 . 2 . . 2 . . 1 . . 1 . . Assault . | . . . . . . . . . . . . . . . Garrison 1 | . . . . . . . . . . . . 1 . . Intercept . | . . . . . . . . . . . . . . . Searches Triggered . | . . . . . . . . . . . . . . . Construction Impeded 1 | . . . . . . . . . . . . 1 . . Haulers Reinforced . | . . . . . . . . . . . . . . . Active Scanning Responses . | . . . . . . . . . . . . . . . Cargo Convoy Interrupts . | . . . . . . . . . . . . . . . Stealth | -11 -10 -9 -8 -7 -6 -6 -6 -6 -5 -5 -5 -4 -3 -2 --------- Run | Yrd Mat Mat Mat Fac Fac Ext Cet Arc Fac Upp Upp Fac Res Res Distress Signals 8 | . . . 2 . . 3 2 . . . . . . 1 Communications Jammed . | . . . . . . . . . . . . . . . Distress Signals . | . . . . . . . . . . . . . . . Times Spotted 146 | . 14 14 27 4 1 26 9 4 3 4 1 16 9 14 Peak Tracking Total 8 | . 3 6 5 2 1 6 5 4 2 2 1 6 8 7 Tactical Retreats 5 | . . . 1 . . 3 . . . . . . . 1 Traps | -11 -10 -9 -8 -7 -6 -6 -6 -6 -5 -5 -5 -4 -3 -2 ------- Run | Yrd Mat Mat Mat Fac Fac Ext Cet Arc Fac Upp Upp Fac Res Res Traps Triggered 2 | . . . 1 . . 1 . . . . . . . . Indirectly . | . . . . . . . . . . . . . . . Trap Hack Attempts . | . . . . . . . . . . . . . . . Triggered . | . . . . . . . . . . . . . . . Disarmed . | . . . . . . . . . . . . . . . Reprogrammed . | . . . . . . . . . . . . . . . Reused . | . . . . . . . . . . . . . . . Traps Extracted . | . . . . . . . . . . . . . . . Installed . | . . . . . . . . . . . . . . . Triggered 1 | . . . . . . . . . . 1 . . . . Machines | -11 -10 -9 -8 -7 -6 -6 -6 -6 -5 -5 -5 -4 -3 -2 ---------- Run | Yrd Mat Mat Mat Fac Fac Ext Cet Arc Fac Upp Upp Fac Res Res Machines Disabled 26 | . 1 3 4 9 . 1 4 . . . . 4 . . Max in Single Turn 4 | . 1 2 2 4 . . . . . . . 4 . . Machines Repaired . | . . . . . . . . . . . . . . . Machines Dismantled . | . . . . . . . . . . . . . . . Machines Sabotaged . | . . . . . . . . . . . . . . . Overloaded Fab Kills . | . . . . . . . . . . . . . . . Hacking | -11 -10 -9 -8 -7 -6 -6 -6 -6 -5 -5 -5 -4 -3 -2 --------- Run | Yrd Mat Mat Mat Fac Fac Ext Cet Arc Fac Upp Upp Fac Res Res Machines Accessed 17 | . 2 . 1 1 . 6 3 . . . . 1 2 1 Terminals 16 | . 1 . 1 1 . 6 3 . . . . 1 2 1 Fabricators . | . . . . . . . . . . . . . . . Repair Stations . | . . . . . . . . . . . . . . . Recycling Units 1 | . 1 . . . . . . . . . . . . . Scanalyzers . | . . . . . . . . . . . . . . . Garrison Access . | . . . . . . . . . . . . . . . Total Hacks 24 | . 2 . 2 1 . 7 7 . . . . 1 2 2 Successful 13 | . 2 . . 1 . 4 2 . . . . 1 2 1 Failed 11 | . . . 2 . . 3 5 . . . . . . 1 Catastrophic 1 | . . . . . . . 1 . . . . . . . Database Lockouts . | . . . . . . . . . . . . . . . Manual 2 | . . . . . 2 . . . . . . . . . Terminals 23 | . 1 . 2 1 . 7 7 . . . . 1 2 2 Fabricators . | . . . . . . . . . . . . . . . Repair Stations . | . . . . . . . . . . . . . . . Recycling Units 1 | . 1 . . . . . . . . . . . . . Scanalyzers . | . . . . . . . . . . . . . . . Garrison Access . | . . . . . . . . . . . . . . . Terminal Hacks 12 | . 1 . . 1 . 4 2 . . . . 1 2 1 Record 5 | . . . . . . . 2 . . . . . 2 1 Open Door 4 | . . . . . . 4 . . . . . . . . Unreport Threat 2 | . 1 . . . . . . . . . . 1 . . Locate Traps 1 | . . . . 1 . . . . . . . . . . Fabricator Hacks . | . . . . . . . . . . . . . . . Repair Station Hacks . | . . . . . . . . . . . . . . . Recycling Unit Hacks 1 | . 1 . . . . . . . . . . . . . Report Inventory 1 | . 1 . . . . . . . . . . . . . Scanalyzer . | . . . . . . . . . . . . . . . Garrison Access Hacks . | . . . . . . . . . . . . . . . Unauthorized Hacks . | . . . . . . . . . . . . . . . Terminals . | . . . . . . . . . . . . . . . Fabricators . | . . . . . . . . . . . . . . . Repair Stations . | . . . . . . . . . . . . . . . Recycling Units . | . . . . . . . . . . . . . . . Scanalyzers . | . . . . . . . . . . . . . . . Garrison Access . | . . . . . . . . . . . . . . . Data Cores Recovered 2 | . 1 . . . . 1 . . . . . . . . Used . | . . . . . . . . . . . . . . . Hacking Detections 12 | . 1 . 1 . 1 3 3 . . . . 1 1 1 Full Trace Events 1 | . . . . . . . 1 . . . . . . . Feedback Events . | . . . . . . . . . . . . . . . Feedback Blocked . | . . . . . . . . . . . . . . . Robot Schematics Acquired . | . . . . . . . . . . . . . . . Robots Built . | . . . . . . . . . . . . . . . Authchips . | . . . . . . . . . . . . . . . Time . | . . . . . . . . . . . . . . . Total Robot Build Rating . | . . . . . . . . . . . . . . . Part Schematics Acquired . | . . . . . . . . . . . . . . . Parts Built . | . . . . . . . . . . . . . . . Authchips . | . . . . . . . . . . . . . . . Time . | . . . . . . . . . . . . . . . Total Part Build Rating . | . . . . . . . . . . . . . . . Parts Repaired . | . . . . . . . . . . . . . . . Time . | . . . . . . . . . . . . . . . Parts Recycled . | . . . . . . . . . . . . . . . Recycled Matter . | . . . . . . . . . . . . . . . Retrieved Matter . | . . . . . . . . . . . . . . . Retrieved Components . | . . . . . . . . . . . . . . . Parts Scanalyzed . | . . . . . . . . . . . . . . . Part Schematics Acquired . | . . . . . . . . . . . . . . . Parts Damaged . | . . . . . . . . . . . . . . . Bothacking | -11 -10 -9 -8 -7 -6 -6 -6 -6 -5 -5 -5 -4 -3 -2 ------------ Run | Yrd Mat Mat Mat Fac Fac Ext Cet Arc Fac Upp Upp Fac Res Res Used RIF Installer . | . . . . . . . . . . . . . . . Robots Hacked . | . . . . . . . . . . . . . . . Non-combat . | . . . . . . . . . . . . . . . Combat . | . . . . . . . . . . . . . . . Robot Hacks Applied . | . . . . . . . . . . . . . . . Relay Couplers Released . | . . . . . . . . . . . . . . . Fabnet Peak Effective % . | . . . . . . . . . . . . . . . Robots Rewired . | . . . . . . . . . . . . . . . Allies Hacked . | . . . . . . . . . . . . . . . Hacks Repelled . | . . . . . . . . . . . . . . . Allies | -11 -10 -9 -8 -7 -6 -6 -6 -6 -5 -5 -5 -4 -3 -2 -------- Run | Yrd Mat Mat Mat Fac Fac Ext Cet Arc Fac Upp Upp Fac Res Res Total Allies 6 | . . . . . . 6 . . . . . . . . Largest Group 4 | . . . . . . 4 1 . . . . . . . Highest-Rated Group 132 | . . . . . . 132 39 . . . . . . . Highest-Rated Ally 39 | . . . . . . 39 39 . . . . . . . Total Orders . | . . . . . . . . . . . . . . . Ally Attacks 66 | . . . . . . 32 34 . . . . . . . Total Damage 966 | . . . . . . 499 467 . . . . . . . Kills 6 | . . . . . . 3 3 . . . . . . . Allies Corrupted . | . . . . . . . . . . . . . . . Allies Melted 1 | . . . . . . 1 . . . . . . . . Intel | -11 -10 -9 -8 -7 -6 -6 -6 -6 -5 -5 -5 -4 -3 -2 ------- Run | Yrd Mat Mat Mat Fac Fac Ext Cet Arc Fac Upp Upp Fac Res Res Robot Analysis Total . | . . . . . . . . . . . . . . . Derelict Logs Recovered . | . . . . . . . . . . . . . . . Drone Launches . | . . . . . . . . . . . . . . . Drone Recoveries . | . . . . . . . . . . . . . . . Exploration | -11 -10 -9 -8 -7 -6 -6 -6 -6 -5 -5 -5 -4 -3 -2 ------------- Run | Yrd Mat Mat Mat Fac Fac Ext Cet Arc Fac Upp Upp Fac Res Res Turns Passed 6340 | 68 301 648 1005 356 300 1164 396 97 270 471 264 536 167 297 Spaces Moved 3882 | 50 251 407 488 255 167 549 189 47 144 266 109 353 328 279 Core 141 | 10 . 3 . . . 62 . . . . . . . 66 Treads 272 | . . . . . . . . . . . 80 160 . 32 Legs 2354 | . . 282 488 255 167 487 189 47 144 266 29 . . . Wheels 413 | 40 251 122 . . . . . . . . . . . . Hover . | . . . . . . . . . . . . . . . Flight 702 | . . . . . . . . . . . . 193 328 181 Fastest Speed 37 | 50 90 90 120 123 123 120 120 120 120 120 190 40 40 37 Average Speed 127 | 87 90 111 127 124 123 177 175 175 169 160 227 116 40 84 Slowest Speed 400 | 100 90 150 130 126 123 400 190 260 190 190 260 240 40 300 Overloaded Moves . | . . . . . . . . . . . . . . . Propulsion Burnouts . | . . . . . . . . . . . . . . . Robots Hopped 8 | . . . . . . . . . . . . 2 1 5 Cave-ins Triggered . | . . . . . . . . . . . . . . . Exploration Rate (%) 31 | 4 38 40 59 9 5 72 67 69 5 49 12 10 17 13 Regions Visited 14 Branch Regions 5 Pre-discovered Areas . | . . . . . . . . . . . . . . . Known Exits Taken 13 | . 1 1 1 1 1 1 1 1 1 1 1 1 1 . Unknown Exits Taken 1 | 1 . . . . . . . . . . . . . . Scrap Searched 1 | . . . . . . . . . . 1 . . . . Spaces Dug 6 | . . 3 3 . . . . . . . . . . . Terrain Destroyed 158 | . 2 19 11 48 . 8 . . . . . 62 . 8 Melee 6 | . . 3 3 . . . . . . . . . . . Projectile 12 | . . . . . . 8 . . . . . 4 . . AOE 140 | . 2 16 8 48 . . . . . . . 58 . 8 Terrain Rammed . | . . . . . . . . . . . . . . . Walls Destroyed . | . . . . . . . . . . . . . . . Machines Disabled . | . . . . . . . . . . . . . . . Actions | -11 -10 -9 -8 -7 -6 -6 -6 -6 -5 -5 -5 -4 -3 -2 --------- Run | Yrd Mat Mat Mat Fac Fac Ext Cet Arc Fac Upp Upp Fac Res Res Total 4808 | 71 295 529 748 284 253 665 231 59 168 288 119 422 359 317 Wait 392 | 1 20 46 129 4 70 30 18 10 19 . . 15 19 11 Move 3852 | 49 250 406 487 254 166 548 188 46 143 265 108 348 325 269 Hop 8 | . . . . . . . . . . . . 2 1 5 Pick Up 106 | 12 5 14 18 8 3 14 4 . 2 4 2 10 4 6 Fast Attach 17 | . . 1 3 . 2 1 . . . . . 1 1 8 Attach 76 | 7 1 11 7 3 2 12 5 1 1 5 3 8 3 7 Detach 4 | . . . . . 1 . . . . . . 1 1 1 Swap 40 | 1 2 6 17 7 2 3 1 . 1 . . . . . Drop 46 | . 2 5 17 4 3 4 2 . 1 . 2 3 3 . Fire 230 | 1 15 37 58 4 4 38 13 2 . 14 4 34 2 4 Melee 20 | . . 3 11 . . . . . 1 . . . . 5 Ram 1 | . . . . . . . . . . . . . . 1 Kick 1 | . . . 1 . . . . . . . . . . . Crush . | . . . . . . . . . . . . . . . Escape Stasis 15 | . . . . . . 15 . . . . . . . . Rewire . | . . . . . . . . . . . . . . . Trap . | . . . . . . . . . . . . . . . Miscellaneous . | . . . . . . . . . . . . . . . Route ------- -11/Scrapyard -10/Materials (discovered 2 exits: *Mat / [*Min]) -9/Materials -8/Materials -7/Factory -6/Factory -6/Extension (discovered 2 exits: *Fac / *Cet) -6/Cetus -6/Archives -5/Factory -5/Upper Caves -5/Upper Caves -4/Factory -3/Research -2/Research History --------- Turn | Location | Event 16 | -11/Scrapyard | Discovered new exit (range 16) 69 | -11/Scrapyard | Entered Materials 249 | -10/Materials | Discovered new exit (range 16) 263 | -10/Materials | Identified exit to Materials 309 | -10/Materials | Discovered new exit (range 9) 312 | -10/Materials | Build established: Mutant 370 | -10/Materials | Entered another Materials area 370 | -9/Materials | Evolved 2 slots: Utility x2 568 | -9/Materials | Lost 3 parts (1p2n) 989 | -9/Materials | Discovered new exit (range 15) 1016 | -9/Materials | Identified exit to Materials 1018 | -9/Materials | Entered another Materials area 1018 | -8/Materials | Evolved 2 slots: Propulsion x1, Utility x1 2001 | -8/Materials | Discovered new exit (range 10) 2021 | -8/Materials | Identified exit to Factory 2023 | -8/Materials | Entered Factory 2023 | -7/Factory | Evolved 2 slots: Utility x2 2359 | -7/Factory | Discovered new exit (range 7) 2367 | -7/Factory | Identified exit to Factory 2379 | -7/Factory | Entered another Factory area 2379 | -6/Factory | Evolved 2 slots: Power x1, Utility x1 2660 | -6/Factory | Discovered new exit (range 16) 2672 | -6/Factory | Build established: Scavenger-Skirmisher 2677 | -6/Factory | Identified exit to Extension 2679 | -6/Factory | Entered Extension 3014 | -6/Extension | Rescued a captive Derelict 3065 | -6/Extension | Build established: Mutant 3128 | -6/Extension | Spotted B-75 Beast 3188 | -6/Extension | Spotted B-75 Beast 3228 | -6/Extension | Core integrity fell below 50% 3251 | -6/Extension | Lost 9 parts (2p3n3u1w) 3353 | -6/Extension | Rescued a captive Derelict 3353 | -6/Extension | Rescued a captive Derelict 3581 | -6/Extension | Rescued a captive Derelict 3583 | -6/Extension | Rescued a captive Derelict 3696 | -6/Extension | Lost 4 allies 3775 | -6/Extension | Rescued a captive Derelict 3797 | -6/Extension | Discovered new exit (range 10) 3800 | -6/Extension | Discovered new exit (range 6) 3817 | -6/Extension | Identified exit to Cetus 3824 | -6/Extension | Identified exit to Factory 3843 | -6/Extension | Entered Cetus 3843 | -6/Cetus | Accompanied by 1 ally 3860 | -6/Cetus | Spotted Cetus Guard 3860 | -6/Cetus | Spotted Cetus Guard 3867 | -6/Cetus | Spotted Cetus Guard 3867 | -6/Cetus | Spotted Cetus Guard 3869 | -6/Cetus | Allies destroyed Cetus Guard 3875 | -6/Cetus | Allies destroyed Cetus Guard 3892 | -6/Cetus | Allies destroyed Cetus Guard 3899 | -6/Cetus | Destroyed Cetus Guard 3909 | -6/Cetus | Lost 3 parts (2p1n) 4016 | -6/Cetus | Cetus Manufacturing Module disabled 4066 | -6/Cetus | Discovered new exit (range 15) 4194 | -6/Cetus | Spotted Cetus Guard 4194 | -6/Cetus | Spotted Cetus Guard 4198 | -6/Cetus | Build established: Scavenger-Mutant 4237 | -6/Cetus | Identified exit to Archives 4239 | -6/Cetus | Entered Archives 4306 | -6/Archives | Core integrity fell below 20% 4313 | -6/Archives | Discovered exit to Factory (range 13) 4336 | -6/Archives | Entered Factory 4336 | -5/Factory | Evolved 2 slots: Propulsion x1, Weapon x1 4359 | -5/Factory | Lost 6 parts (1p2n1u2w) 4591 | -5/Factory | Discovered new exit (range 6) 4599 | -5/Factory | Identified exit to Upper Caves 4606 | -5/Factory | Entered Upper Caves 5046 | -5/Upper Caves | Discovered new exit (range 10) 5075 | -5/Upper Caves | Identified exit to Upper Caves 5077 | -5/Upper Caves | Entered another Upper Caves area 5121 | -5/Upper Caves | Attracted the attention of an 0b10 checkpoint 5286 | -5/Upper Caves | Discovered new exit (range 5) 5293 | -5/Upper Caves | Identified exit to Factory 5341 | -5/Upper Caves | Entered Factory 5341 | -4/Factory | Evolved 2 slots: Propulsion x1, Weapon x1 5362 | -4/Factory | Build established: Hacker-Mutant 5696 | -4/Factory | Garrison activated, responded to threat 5801 | -4/Factory | Lost 5 parts (2n1u2w) 5867 | -4/Factory | Discovered new exit (range 3) 5877 | -4/Factory | Identified exit to Research 5877 | -4/Factory | Entered Research 5877 | -3/Research | Evolved 2 slots: Utility x2 6003 | -3/Research | Spotted B-86 Titan 6031 | -3/Research | Discovered new exit (range 18) 6043 | -3/Research | Identified exit to Research 6044 | -3/Research | Entered another Research area 6044 | -2/Research | Evolved 2 slots: Power x1, Propulsion x1 6091 | -2/Research | Spotted B-90 Cyclops 6231 | -2/Research | Core integrity fell below 50% 6272 | -2/Research | Lost 19 parts (4p4n7u4w) 6315 | -2/Research | Core integrity fell below 20% 6341 | -2/Research | Destroyed by B-90 Cyclops with Nova Cannon Last Messages --------------- 06300_ Slug penetrates Door. 06300_ Slug penetrates Wall. 06303_ Penetrated by Slug. 06306_ Slug penetrates Wall. 06306_ Field Propulsion Drive destroyed. 06311_ Slug penetrates Wall. 06311_ Adv. Targeting Computer destroyed. 06314_ Slug penetrates Wall. 06316_ M-36 Artificer repairs Y-72 Warden. 06321_ Slug penetrates Wall. 06321_ Slug penetrates Door. 06327_ Slug penetrates Wall. 06334_ Force Lance destroyed. 06338_ Critical hit (Meltdown: +370). 06339_ Power failure, Com. Particle Reactor shutdown. 06340_ Overheating: Energy bleed (-17). 06340_ B-90 Cyclops activates siege mode. 06341_ Overheating: Energy bleed (-24). [Achievement: 10k Club] Map ----- +----------------------------------------------------+ | ?????????????????????????????????????????????????? | | ?????????????????????????????????????????????????? | | ?????????? ????????????????????????????????????? | | ?????????? #??????????????????????????????????? | | ?????????? #??????????????????????????????????? | | ?????????? #??????????????????????????????????? | | ?????????? #??????????????????????????????????? | | ?????????# #??????????????????????????????????? | | ?????????# #??????????????????????????????????? | | ?????????# #??????????????????????????????????? | | ?????????# +??????????????????????????????????? | | ?????????# #??????????????????????????????????? | | ?????????# #??????????????????????????????????? | | ?????????# #??????????????????????????????????? | | ########## #??????????????????????????????????? | | # #??????########????????????????????? | | # #??????# #????????????????????? | | ] # #??????# #????????????????????? | | # #??????# =!! #????????????????????? | | # ^#??????# =! #????????????????????? | | # ######## =! #????????????????????? | | # # #?????????????????#??? | | + # #???????#?????#??????? | | # # [ #??????#?????????????? | | + + #??????????#?????????? | | ## ##### # @ #???????##??#?#????#?? | | ## #???# # #? ? ??????#????#????? | | #+#########"##### ###+;+##????????????????#?#?? | | # #???# # #??????############### | | # #???# # #? ????# !!## | | # #???# # + ???? # ! #? | | # #???# " #??????# #? | | # #???# # ##;;####?? ???# """ #? | | # #???# # ## #???? ? ??# """ #? | | # #???# # ##BB#??####???# """ ## | | # #???# # BB ? ???# """ # | | # #####+######### ?? ?? # """ # | | ? ??# """ # | | ##############?## """"" ?# """ # | | ###??????#??????# """" ""Y"" ?# # | | ##########??### """" # ]# | | ??? """" #####+######### | | [ ??? """" | | ?? ######## | | ##+#####?#?####% #?##?#?# | | #?#? ???#?#??#### ######## | | #?#? ?????#??# "" ##########+### # | | #?# #??##??#""" #?????????? ?# # | | #?# ? ####???#"R #?? ?? ???# # "" | | ###?? ??##?#?#""" ] #???"??"?"?? #^ # """ | +----------------------------------------------------+ Best States ------------- Heat Dissipation 57 Energy Generation 36 Energy Capacity 540 Matter Stores 300 Matter Capacity 300 Sight Range 22 Robot Scan Range 15 Terrain Scan Range 16 Terrain Scan Density 110 Armor Coverage 225 Resistance: EM 15 Weapon Shielding 66 Evasion (%) 74 Targeting Accuracy 8 Core Analysis 6 Recoil Reduction 2 Offensive Hacking 24 Item Schematics ----------------- None Robot Schematics ------------------ None Fabricated ------------ Nothing Alien Tech Used ----------------- None Achievements -------------- 10k Club Close Call Knowing Is Half The Battle Omniscient Cartographer Origins Respectable Loadout Challenges ------------ None Game ------ Seed NeutronXenonLink Manual? 0 Play Time 02:29:55 Cumulative 23.0 hours Start 2024.04.19 @ 19:27:11 End 2024.04.20 @ 09:53:53 Sessions 3 Manual Loads 0 Difficulty Rogue Special Mode None Game No. 27 Rogue 27 Adventurer 0 Explorer 0 Win Type - Total 0 Types 0/0/0/0/0/0/0/0/0 Lore% 10 Gallery% 23 Achievement% 18 Wizard Run 0 Options --------- Layout 2 ASCII 0 Keyboard 0 Movement Mouse Keybinds 0 Fullscreen 1 Font 48/Smallcaps Map View 50x44 Zoom Use 0% Tactical HUD 1 Map Filters NONE Filters NONE Steam 1 RUN: e8b3fbad-98b2-4bbc-9051-94d6bffe9ef8